bitfinex/quotes_ETHUSD_20260120
["timestamp","ask_amount","ask_price","bid_price","bid_amount"]
[1768936860241,7.62077828,2998.7,2998.2,8.59492189]
[1768936860437,7.62077828,2998.7,2998.3,7.3769797]
[1768936862014,7.62077828,2998.7,2998.1,0.002]
[1768936862218,8.16977828,2998.6,2997.9,0.002]
[1768936864215,7.61977828,2998.5,2997.9,0.002]
[1768936864415,7.61977828,2998.5,2997.4,5.80959376]
[1768936864416,7.61977828,2998.4,2997.4,0.55]
[1768936864749,7.61977828,2998.2,2997.2,7.3769797]
[1768936864951,7.61977828,2998.0,2997.2,7.3769797]
[1768936865541,7.61977828,2998.0,2997.3,7.3769797]
[1768936866217,7.61977828,2998.0,2997.4,12.63657346]
[1768936867458,7.61977828,2998.0,2997.2,5.25959376]
[1768936867747,7.61977828,2998.0,2997.1,0.55]
[1768936867946,7.09753096,2998.1,2997.1,0.55]
[1768936867947,9.0915092,2997.9,2997.1,0.55]
[1768936868740,9.0915092,2997.9,2996.9,7.3769797]
[1768936870050,9.0915092,2997.9,2997.0,12.63657346]
[1768936870234,9.0915092,2997.9,2997.2,12.63657346]
[1768936870551,7.61977828,2998.1,2997.6,5.25959376]
[1768936870750,7.61977828,2998.6,2997.8,5.25959376]
[1768936870938,0.76307783,2998.7,2997.8,12.63657346]
[1768936870939,7.61977828,2998.4,2997.8,12.63657346]
[1768936871160,7.61977828,2998.4,2997.8,7.3769797]
[1768936871342,7.61977828,2998.4,2997.6,12.63657346]
[1768936871542,8.43675611,2998.4,2997.7,0.01640635]
[1768936871745,8.43675611,2998.4,2997.6,7.3769797]
[1768936871945,8.98675611,2998.4,2997.6,7.3769797]
[1768936872158,8.16977828,2998.4,2997.7,7.3769797]
[1768936872567,7.61977828,2998.4,2997.7,7.3769797]
[1768936872728,0.76307783,2998.7,2998.1,7.3769797]
[1768936872729,0.001,2998.7,2998.1,7.3769797]
[1768936873073,8.17077828,2998.7,2998.1,7.3769797]
[1768936873551,5.25959376,2998.6,2997.6,7.3769797]
[1768936873756,7.61977828,2998.5,2997.6,0.73769797]
[1768936873956,7.61977828,2998.5,2997.6,8.11467767]
[1768936874665,7.62077828,2998.2,2997.6,8.11467767]
[1768936875545,7.62077828,2998.2,2997.7,7.39157224]
[1768936875878,7.62077828,2998.2,2997.6,0.73769797]
[1768936876089,7.62077828,2998.2,2997.5,7.94157224]
[1768936879469,7.62077828,2998.2,2997.5,0.55]
[1768936879877,7.62077828,2998.2,2997.5,7.94157224]
[1768936880063,7.62077828,2998.2,2997.5,7.39157224]
[1768936880872,8.17077828,2998.2,2997.5,7.39157224]
[1768936881075,8.17077828,2998.2,2997.5,8.99052146]
[1768936882974,7.62077828,2998.2,2997.6,7.39157224]
[1768936883182,0.001,2998.2,2997.6,7.39157224]
[1768936884081,0.001,2998.2,2997.8,7.39157224]
[1768936884267,0.001,2998.2,2998.0,7.39157224]
[1768936885461,7.97577571,2998.8,2998.2,7.39157224]
[1768936887484,7.42577571,2998.8,2998.2,7.39157224]
[1768936887684,7.97577571,2998.8,2998.2,7.39157224]
[1768936888691,0.001,2998.6,2998.2,7.39157224]
[1768936890205,7.42677571,2998.6,2998.2,7.39157224]
[1768936890591,7.42677571,2998.6,2997.7,7.39357224]
[1768936890893,7.42577571,2998.5,2997.7,0.552]
[1768936891495,7.42577571,2998.5,2997.7,7.94357224]
[1768936893204,7.42577571,2998.5,2997.7,0.552]
[1768936893729,7.42577571,2998.3,2997.7,0.002]
[1768936893907,7.42577571,2998.1,2997.7,0.002]
[1768936895101,7.42577571,2998.1,2997.5,0.002]
[1768936895413,7.42577571,2998.1,2997.5,7.39357224]
[1768936897687,7.42577571,2998.1,2997.5,0.002]
[1768936897894,8.22335328,2998.1,2997.5,0.002]
[1768936898194,8.22335328,2998.1,2997.5,7.39357224]
[1768936899885,8.22335328,2998.1,2997.5,0.002]
[1768936900421,8.22335328,2998.1,2997.4,0.002]
[1768936900422,7.42577571,2998.0,2997.4,0.002]
[1768936900610,7.42577571,2997.8,2997.1,7.39357224]
[1768936901019,7.97577571,2997.8,2997.1,7.39357224]
[1768936901195,7.97577571,2997.8,2997.7,0.002]
[1768936901395,7.97577571,2997.8,2997.1,7.39357224]
[1768936901606,7.42577571,2997.3,2996.7,0.002]
[1768936901825,7.42577571,2997.1,2996.7,7.39357224]
[1768936903631,7.42577571,2997.1,2996.7,0.002]
[1768936903805,7.42577571,2997.1,2996.3,0.002]
[1768936904630,7.42577571,2997.1,2996.3,7.19336842]
[1768936904836,7.26718079,2996.9,2996.3,7.19336842]
[1768936905000,8.04889887,2996.9,2996.3,0.002]
[1768936906318,8.04889887,2996.9,2996.3,7.34588425]
[1768936907102,8.04889887,2996.9,2996.3,4.00755165]
[1768936907423,8.04889887,2996.9,2996.3,3.95713865]
[1768936910603,0.78171808,2996.9,2996.3,3.95713865]
[1768936910930,8.01216912,2997.1,2996.3,3.95713865]
[1768936912931,7.46116912,2997.1,2996.4,5.25959376]
[1768936913240,7.46116912,2997.5,2996.9,7.34388425]
[1768936913403,8.01216912,2997.5,2996.7,7.34388425]
[1768936913612,7.46116912,2997.3,2996.7,7.34388425]
[1768936914339,7.46116912,2997.3,2996.6,5.81059376]
[1768936914340,7.46116912,2997.3,2996.6,0.551]
[1768936914539,7.46116912,2997.3,2996.6,7.89488425]
[1768936915029,8.01216912,2997.3,2996.6,7.89488425]
[1768936915507,8.01216912,2997.3,2996.6,0.551]
[1768936915710,7.46116912,2997.1,2996.6,0.551]
[1768936916257,7.46116912,2997.1,2996.5,0.002]
[1768936918438,7.46116912,2997.1,2996.6,7.34388425]
[1768936918642,0.551,2997.0,2996.6,7.34388425]
[1768936919323,8.01216912,2997.0,2996.5,0.002]
[1768936919522,8.81338603,2997.0,2996.5,0.002]
[1768936919829,8.81338603,2997.0,2996.5,7.34588425]
[1768936920551,8.26238603,2997.0,2996.5,7.34588425]
[1768936920847,8.01216912,2997.2,2996.6,7.34388425]
[1768936921220,0.551,2997.2,2996.8,7.34388425]
[1768936921426,8.01216912,2997.2,2996.8,7.34388425]
[1768936922452,7.46116912,2997.2,2996.8,7.34388425]
[1768936926352,0.001,2997.0,2996.5,0.002]
[1768936926562,8.20838603,2997.0,2996.5,0.002]
[1768936927144,8.20838603,2997.0,2996.5,7.34588425]
[1768936927466,7.46216912,2997.0,2996.5,7.34588425]
[1768936931044,7.46216912,2997.0,2996.5,0.002]
[1768936931767,7.46116912,2996.6,2996.3,0.002]
[1768936931932,7.46116912,2996.6,2996.0,0.002]
[1768936931933,7.46116912,2996.4,2996.0,0.002]
[1768936932287,10.01107,2997.0,2995.6,0.002]
[1768936932288,7.46116912,2996.0,2995.6,0.002]
[1768936932751,5.81832823,2996.1,2995.1,0.002]
[1768936932752,7.46116912,2995.8,2995.1,0.002]
[1768936932930,0.551,2995.7,2995.1,0.002]
[1768936933134,7.46116912,2995.6,2995.1,0.002]
[1768936934028,7.46116912,2995.6,2995.1,7.34588425]
[1768936934766,0.551,2995.7,2995.4,7.34588425]
[1768936935060,0.551,2995.7,2995.4,0.002]
[1768936935933,7.55707519,2996.6,2995.4,8.51429971]
[1768936936260,8.10807519,2996.8,2995.4,8.51429971]
[1768936936874,7.55707519,2996.7,2995.5,7.77771128]
[1768936938978,7.55707519,2996.7,2995.7,7.77771128]
[1768936939177,8.70157233,2996.7,2995.7,8.88951437]
[1768936939681,0.551,2996.6,2995.9,7.77771128]
[1768936940048,0.551,2996.7,2995.9,7.77771128]
[1768936940780,0.001,2996.8,2995.9,7.77771128]
[1768936941301,0.001,2996.8,2996.1,7.77771128]
[1768936941777,0.001,2996.8,2996.1,8.32871128]
[1768936941978,0.001,2996.8,2996.1,9.16158241]
[1768936943352,0.001,2996.8,2996.2,7.77771128]
[1768936946283,0.001,2997.0,2996.3,7.77771128]
[1768936946582,0.551,2997.5,2996.3,7.77771128]
[1768936946773,8.10807519,2997.5,2996.3,7.77771128]
[1768936946950,7.55707519,2997.5,2996.5,7.77771128]
[1768936947155,8.10807519,2997.5,2996.5,8.32871128]
[1768936948383,7.55707519,2997.4,2996.4,1.44528022]
[1768936948782,7.55707519,2997.4,2996.4,9.2229915]
[1768936949890,7.55707519,2997.3,2996.4,9.2229915]
[1768936950187,7.55707519,2997.3,2996.1,0.83287113]
[1768936950188,7.55707519,2997.3,2996.2,8.32871128]
[1768936951860,7.55707519,2997.2,2996.2,8.32871128]
[1768936952185,7.55707519,2997.0,2996.2,8.32871128]
[1768936953481,7.55707519,2997.0,2996.3,7.77771128]
[1768936955860,7.55707519,2997.0,2996.4,7.77771128]
[1768936956696,7.55807519,2997.4,2996.5,7.77771128]
[1768936957383,0.001,2997.4,2996.7,7.77771128]
[1768936959685,7.55807519,2997.4,2996.7,7.77771128]
[1768936961496,7.55707519,2997.2,2996.1,7.77771128]
[1768936961694,7.55707519,2997.2,2996.1,8.32871128]
[1768936961883,7.55707519,2997.2,2996.1,7.77771128]
[1768936962061,7.55707519,2997.2,2995.8,7.77771128]
[1768936963081,3.33655867,2997.1,2996.3,0.002]
[1768936963276,8.22438109,2997.0,2995.8,7.77771128]
[1768936963496,7.55707519,2996.8,2995.8,7.77771128]
[1768936963690,7.55707519,2996.8,2996.0,0.002]
[1768936963882,7.55707519,2996.8,2996.0,7.77971128]
[1768936964080,0.6673059,2997.0,2996.0,7.77971128]
[1768936964081,0.6673059,2997.0,2996.2,8.14481623]
[1768936964288,0.6673059,2997.0,2996.4,8.14481623]
[1768936965993,7.73738196,2997.1,2996.4,8.14481623]
[1768936966193,7.73738196,2997.1,2996.1,0.551]
[1768936966194,7.73738196,2997.1,2996.1,8.81201288]
[1768936966793,7.73738196,2997.1,2996.1,0.551]
[1768936967096,7.73738196,2997.0,2996.0,0.002]
[1768936967295,7.73738196,2996.8,2996.0,0.002]
[1768936967496,7.73738196,2996.6,2996.0,0.002]
[1768936969705,7.73738196,2996.5,2996.0,0.002]
[1768936970399,7.73738196,2996.5,2995.6,8.26301288]
[1768936970400,7.73738196,2996.5,2995.6,0.002]
[1768936972393,7.73738196,2996.4,2995.6,0.002]
[1768936972604,7.73738196,2996.2,2995.6,0.002]
[1768936975282,7.73738196,2996.2,2995.8,0.002]
[1768936975590,0.001,2996.0,2995.8,0.002]
[1768936976101,0.001,2996.0,2995.6,0.002]
[1768936976814,7.73838196,2996.0,2995.6,0.002]
[1768936978502,8.51222016,2996.0,2995.6,0.002]
[1768936978890,8.51222016,2996.0,2995.5,0.002]
[1768936979095,8.51222016,2996.0,2995.4,0.002]
[1768936979412,8.51222016,2996.0,2995.1,0.002]
[1768936979413,8.28838196,2995.9,2995.1,0.002]
[1768936979617,7.73738196,2995.7,2995.1,0.002]
[1768936981286,7.73738196,2995.6,2995.1,0.002]
[1768936981485,3.33812907,2995.7,2994.9,0.002]
[1768936981486,7.73738196,2995.4,2994.9,0.002]
[1768936982707,7.73738196,2995.3,2994.9,0.002]
[1768936982910,7.73738196,2995.3,2994.6,0.002]
[1768936983108,7.73738196,2995.1,2994.6,0.002]
[1768936983419,7.73738196,2995.1,2994.6,8.26301288]
[1768936983792,7.73738196,2995.1,2994.6,0.002]
[1768936984016,7.73738196,2995.1,2994.5,0.002]
[1768936984396,8.28838196,2995.1,2994.5,0.002]
[1768936984716,7.73738196,2994.9,2994.5,0.002]
[1768936985789,7.73738196,2994.9,2994.4,0.002]
[1768936985994,4.16779869,2995.0,2994.4,0.002]
[1768936985995,7.73738196,2994.8,2994.4,0.002]
[1768936986243,0.8288382,2995.0,2994.4,8.26301288]
[1768936986592,0.551,2995.1,2994.4,8.26301288]
[1768936987720,8.28838196,2995.1,2994.4,8.26301288]
[1768936988111,8.28838196,2995.1,2994.8,0.002]
[1768936988293,8.28838196,2995.1,2994.5,0.002]
[1768936989244,8.28838196,2995.1,2994.5,8.26301288]
[1768936989524,0.8288382,2995.0,2994.5,8.26301288]
[1768936990791,8.56622016,2995.0,2994.5,0.002]
[1768936990994,8.56622016,2995.0,2994.4,0.002]
[1768936991227,7.73738196,2994.8,2994.2,0.002]
[1768936991406,7.73738196,2994.8,2994.0,4.1e-06]
[1768936991602,6.67801928,2994.9,2994.0,4.1e-06]
[1768936991603,7.73738196,2994.6,2994.0,4.1e-06]
[1768936995333,1.44154012,2994.7,2994.0,4.1e-06]
[1768936995538,8.17679312,2995.3,2994.0,8.03598059]
[1768936995740,8.72779312,2995.3,2994.2,8.03597649]
[1768936995899,8.72779312,2995.3,2994.4,8.03597649]
[1768936996728,8.72779312,2995.3,2994.3,0.551]
[1768936996931,8.72779312,2995.3,2994.3,8.58697649]
[1768936997132,9.04957243,2995.2,2994.3,8.58697649]
[1768936997697,9.04957243,2995.2,2994.4,8.03597649]
[1768936997902,0.551,2995.3,2994.4,8.03597649]
[1768936998120,0.7748382,2996.0,2994.4,8.03597649]
[1768936998121,8.72779312,2995.7,2994.4,8.03597649]
[1768936999029,8.17679312,2995.6,2994.0,4.1e-06]
[1768936999342,8.17679312,2995.4,2994.0,4.1e-06]
[1768936999543,14.12606252,2996.0,2994.0,4.1e-06]
[1768936999544,8.17679312,2995.2,2994.0,4.1e-06]
[1768936999703,8.17679312,2995.0,2994.0,4.1e-06]
[1768936999899,8.17679312,2995.0,2994.0,8.03598059]
[1768937000202,8.17679312,2995.3,2994.5,8.03797649]
[1768937000402,0.551,2995.2,2994.5,8.03797649]
[1768937000705,8.72779312,2995.2,2994.5,8.84177414]
[1768937001026,8.17679312,2995.2,2994.5,8.84177414]
[1768937003732,0.551,2995.3,2994.5,9.39277414]
[1768937004129,8.72779312,2995.3,2994.5,9.39277414]
[1768937005899,0.551,2995.3,2994.5,9.39277414]
[1768937006234,0.551,2995.3,2994.7,8.03597649]
[1768937007803,8.72779312,2995.3,2994.7,8.03597649]
[1768937009110,0.551,2995.3,2994.7,8.03597649]
[1768937009626,0.551,2995.3,2994.5,0.551]
[1768937009627,8.17679312,2995.3,2994.5,0.551]
[1768937009832,8.17679312,2995.1,2994.3,8.58897649]
[1768937011737,8.17679312,2995.1,2994.3,8.03797649]
[1768937012750,8.17779312,2995.0,2994.3,8.03797649]
[1768937014745,8.17779312,2995.0,2994.3,0.002]
[1768937015241,8.17779312,2995.0,2994.3,8.03797649]
[1768937015449,8.17779312,2995.0,2994.3,8.89687414]
[1768937018714,0.001,2995.0,2994.3,8.89687414]
[1768937019444,8.17779312,2995.0,2994.3,8.89687414]
[1768937020646,0.001,2995.0,2994.3,8.89687414]
[1768937021465,8.17779312,2995.0,2994.3,8.89687414]
[1768937021746,0.001,2995.0,2994.5,8.03597649]
[1768937024335,0.001,2995.0,2994.5,8.03797649]
[1768937024642,0.001,2994.8,2994.5,8.03797649]
[1768937024856,0.551,2995.3,2994.6,8.54764635]
[1768937025030,0.001,2995.5,2994.6,9.09864635]
[1768937025256,0.001,2995.5,2994.8,8.36726115]
[1768937025566,8.36297535,2995.5,2994.8,8.36726115]
[1768937026550,0.001,2995.5,2994.8,8.36726115]
[1768937026751,0.7748382,2996.0,2994.9,8.36726115]
[1768937026952,8.36197535,2995.9,2995.1,8.36726115]
[1768937027169,9.25337289,2995.9,2995.1,8.36726115]
[1768937030079,8.36197535,2995.8,2994.7,8.36726115]
[1768937030577,8.36197535,2995.8,2994.5,8.36926115]
[1768937030878,8.36197535,2995.8,2994.6,0.551]
[1768937031184,8.36197535,2995.6,2994.6,0.551]
[1768937031381,8.36197535,2995.4,2994.6,0.551]
[1768937031550,8.36197535,2995.4,2994.6,8.91826115]
[1768937032592,8.36197535,2995.4,2994.5,0.002]
[1768937032593,8.36197535,2994.9,2994.5,0.002]
[1768937032879,8.91297535,2994.9,2994.3,0.002]
[1768937033049,8.36197535,2994.7,2994.3,0.002]
[1768937033580,8.36197535,2994.7,2994.0,4.1e-06]
[1768937034145,8.36197535,2994.7,2993.8,8.36926115]
[1768937034146,8.36197535,2994.7,2993.8,0.002]
[1768937034348,8.36197535,2994.5,2993.5,8.36926115]
[1768937034647,8.91297535,2994.5,2993.5,8.36926115]
[1768937034864,8.36197535,2994.4,2993.5,9.26168727]
[1768937036854,8.36197535,2994.4,2994.3,0.002]
[1768937037050,8.36197535,2994.4,2993.6,8.36726115]
[1768937037792,8.36197535,2994.3,2993.5,0.002]
[1768937037976,8.36197535,2994.3,2993.4,0.002]
[1768937038287,8.36197535,2994.1,2993.4,0.002]
[1768937038589,8.36197535,2993.9,2993.4,0.002]
[1768937040088,8.36197535,2993.9,2993.1,0.002]
[1768937040272,8.36197535,2993.7,2992.9,0.002]
[1768937040603,8.36197535,2993.5,2992.9,0.002]
[1768937041697,9.25327289,2993.5,2992.9,0.002]
[1768937041902,9.25327289,2993.5,2992.6,8.36726115]
[1768937042070,9.25327289,2993.5,2992.4,8.91826115]
[1768937044020,8.36197535,2993.3,2991.6,8.36726115]
[1768937044189,3.34068283,2993.4,2991.8,8.36726115]
[1768937044190,8.36197535,2993.1,2991.8,8.36726115]
[1768937044378,8.36197535,2993.1,2991.7,1.95710322]
[1768937044379,8.36197535,2993.0,2992.0,8.36726115]
[1768937053313,1.72126582,2993.2,2992.0,8.36726115]
[1768937053314,0.551,2992.9,2992.0,8.36726115]
[1768937053610,8.91297535,2992.9,2992.0,8.36726115]
[1768937054905,5.2820712,2992.8,2992.0,8.36726115]
[1768937055210,5.2820712,2992.8,2992.0,9.59351993]
[1768937055417,8.91297535,2992.9,2992.1,8.45158115]
[1768937055718,14.21618746,2993.0,2992.1,8.45158115]
[1768937056403,5.2820712,2992.6,2992.1,8.45158115]
[1768937056599,5.8330712,2993.0,2992.1,8.45158115]
[1768937056811,8.38311626,2992.9,2992.3,8.45158115]
[1768937060715,8.38311626,2993.4,2992.3,9.00258115]
[1768937061019,8.93411626,2993.3,2992.3,9.00258115]
[1768937061223,0.89341163,2993.2,2992.5,8.45158115]
[1768937061531,8.93411626,2993.3,2992.5,8.45158115]
[1768937063540,8.38311626,2993.3,2992.5,8.45158115]
[1768937063747,8.38311626,2993.5,2992.6,8.45158115]
[1768937063922,8.93411626,2993.5,2992.6,8.45158115]
[1768937065860,8.38311626,2993.6,2992.7,9.00358115]
[1768937066030,8.38311626,2993.9,2992.8,9.68609685]
[1768937066235,8.93411626,2993.8,2992.8,9.68609685]
[1768937066958,8.38311626,2993.8,2992.8,9.68609685]
[1768937067952,8.38311626,2993.8,2992.9,3.34124093]
[1768937068158,8.38311626,2993.8,2993.0,9.24329033]
[1768937068373,8.38311626,2994.1,2993.2,8.45158115]
[1768937068528,8.93411626,2994.1,2993.2,8.45158115]
[1768937068736,3.33929012,2994.7,2993.2,8.45158115]
[1768937068737,8.38311626,2994.7,2993.2,8.45158115]
[1768937068928,8.38311626,2994.5,2993.2,8.45158115]
[1768937069134,8.93411626,2994.5,2993.4,8.45158115]
[1768937069344,8.93411626,2994.5,2993.6,8.45158115]
[1768937070590,8.38311626,2994.7,2993.6,8.45158115]
[1768937070880,8.93411626,2994.7,2993.7,8.45158115]
[1768937071442,8.38311626,2994.9,2993.7,8.45158115]
[1768937071644,8.38311626,2994.9,2993.9,8.45158115]
[1768937071871,8.38311626,2994.9,2994.1,8.45158115]
[1768937073961,0.001,2994.3,2994.1,8.45158115]
[1768937074278,8.38311626,2994.8,2994.2,8.45158115]
[1768937074479,8.93411626,2995.0,2994.2,8.45158115]
[1768937074684,8.38311626,2995.6,2994.2,9.35183927]
[1768937074859,8.38311626,2995.4,2994.2,9.35183927]
[1768937075276,8.38311626,2995.4,2994.3,8.45158115]
[1768937075478,8.38311626,2995.4,2994.5,8.45158115]
[1768937075790,9.27652789,2995.4,2994.5,8.45158115]
[1768937076549,9.27652789,2995.4,2993.9,8.45158115]
[1768937076756,8.38311626,2995.3,2993.9,8.45158115]
[1768937076984,8.38311626,2994.5,2993.9,8.45158115]
[1768937077182,8.38311626,2994.5,2994.0,0.90025812]
[1768937077848,8.38311626,2994.5,2994.0,9.35183927]
[1768937078291,8.38311626,2994.5,2994.0,0.90025812]
[1768937078873,8.38311626,2994.5,2994.0,9.35183927]
[1768937079258,8.38311626,2994.7,2994.0,9.35183927]
[1768937084556,0.551,2994.9,2994.2,8.16260642]
[1768937084896,8.65849601,2995.1,2994.2,8.16260642]
[1768937085191,9.20949601,2995.1,2994.2,8.16260642]
[1768937085407,8.32154901,2995.3,2994.2,8.71360642]
[1768937085607,8.87254901,2995.2,2994.4,8.08604399]
[1768937085907,8.87254901,2995.2,2994.2,0.551]
[1768937085908,8.87254901,2995.2,2994.6,8.08604399]
[1768937086317,0.001,2995.7,2994.6,8.08604399]
[1768937086609,0.551,2995.5,2994.6,8.63704399]
[1768937086774,8.87254901,2995.5,2994.6,8.63704399]
[1768937089890,8.87254901,2995.5,2994.6,8.08604399]
[1768937090188,8.87254901,2995.5,2994.6,9.39795978]
[1768937091795,0.001,2995.7,2994.7,8.08604399]
[1768937091993,8.87254901,2995.6,2994.7,8.08604399]
[1768937093824,8.87254901,2995.6,2994.6,1.31191579]
[1768937094323,8.87254901,2995.6,2994.5,8.63704399]
[1768937094324,8.32154901,2995.5,2994.3,8.63704399]
[1768937094818,8.32154901,2995.5,2994.4,8.08604399]
[1768937095191,8.32154901,2995.5,2994.5,8.08604399]
[1768937095602,8.32154901,2995.3,2994.5,8.08604399]
[1768937096202,8.87254901,2995.3,2994.5,8.08604399]
[1768937096404,8.87254901,2995.3,2994.5,9.28370095]
[1768937096819,8.32154901,2995.3,2994.5,9.28370095]
[1768937097032,8.87254901,2995.3,2994.6,8.08604399]
[1768937099117,8.87254901,2995.5,2994.6,8.08604399]
[1768937099319,8.32254901,2995.4,2994.7,8.08604399]
[1768937099540,8.32254901,2995.4,2994.7,9.34834553]
[1768937100546,8.32254901,2995.4,2994.7,9.89934553]
[1768937101745,8.32154901,2995.3,2994.7,1.81330154]
[1768937102523,8.32154901,2995.3,2994.7,9.89934553]
[1768937103052,0.001,2995.4,2994.7,9.89934553]
[1768937103229,8.32154901,2995.3,2994.9,8.08604399]
[1768937103432,8.32254901,2995.4,2994.9,8.08604399]
[1768937104249,8.32254901,2995.4,2994.7,8.63704399]
[1768937104459,8.32154901,2995.3,2994.7,8.63704399]
[1768937108245,0.001,2995.4,2994.7,8.63704399]
[1768937108450,8.32254901,2995.4,2994.9,8.08604399]
[1768937109029,8.32254901,2995.4,2995.0,8.08604399]
[1768937109030,0.001,2995.4,2995.0,8.08604399]
[1768937109659,0.001,2996.0,2995.4,8.08604399]
[1768937109957,8.32254901,2996.0,2995.4,8.08604399]
[1768937110661,8.32154901,2995.9,2995.2,8.63704399]
[1768937111449,8.32154901,2995.9,2995.2,9.83463772]
[1768937114461,0.001,2996.0,2994.7,8.08604399]
[1768937114462,8.32154901,2995.5,2994.7,8.08604399]
[1768937114961,8.58051147,2995.1,2994.5,8.56661292]
[1768937115166,8.58051147,2995.1,2994.3,9.11761292]
[1768937115334,8.58051147,2994.9,2994.3,8.56661292]
[1768937115537,8.58051147,2994.5,2994.0,0.002]
[1768937116055,8.58051147,2994.1,2993.5,8.56661292]
[1768937116260,5.27233662,2994.2,2993.3,8.56661292]
[1768937116261,13.85284809,2994.0,2993.3,8.56661292]
[1768937116458,0.551,2994.2,2993.4,8.56661292]
[1768937117037,6.67759894,2995.1,2993.5,8.56661292]
[1768937117038,9.13151147,2994.4,2993.5,8.56661292]
[1768937117362,9.13151147,2994.4,2993.6,8.56661292]
[1768937117569,8.58051147,2994.4,2993.8,8.56661292]
[1768937118062,8.58051147,2994.8,2993.8,8.56661292]
[1768937118266,9.13151147,2994.8,2993.8,8.56661292]
[1768937120170,9.13151147,2994.8,2993.9,8.56661292]
[1768937123773,9.13151147,2994.8,2994.1,8.56661292]
[1768937125351,8.58051147,2994.8,2994.2,8.56661292]
[1768937125560,8.58051147,2995.0,2994.2,8.56661292]
[1768937125784,9.13151147,2995.0,2994.2,8.56661292]
[1768937126965,9.13151147,2995.0,2994.1,0.85686129]
[1768937127161,9.13151147,2995.0,2994.0,8.56861292]
[1768937131188,3.88991245,2995.0,2994.0,8.56861292]
[1768937131390,8.58051147,2994.9,2994.0,8.56861292]
[1768937134207,0.001,2995.1,2994.2,8.56661292]
[1768937134487,8.58051147,2995.6,2994.3,9.11761292]
[1768937134656,8.58051147,2995.6,2994.5,8.56661292]
[1768937134861,8.58051147,2995.6,2994.0,8.56861292]
[1768937134862,8.58051147,2995.5,2994.0,8.56861292]
[1768937135089,8.58051147,2995.5,2994.0,9.11961292]
[1768937135386,8.58051147,2995.5,2994.0,8.56861292]
[1768937135586,8.58051147,2995.5,2994.0,3.34199167]
[1768937135792,8.58051147,2995.3,2994.1,9.81257338]
[1768937135985,8.58051147,2995.1,2994.1,9.81257338]
[1768937137175,0.551,2995.2,2994.2,8.56661292]
[1768937137375,9.13151147,2995.2,2994.2,8.56661292]
[1768937138510,9.13151147,2995.2,2994.3,9.11761292]
[1768937138707,9.13151147,2995.2,2994.4,9.47837421]
[1768937138910,5.82465002,2995.2,2994.4,9.47837421]
[1768937139209,8.58051147,2994.9,2994.2,9.11761292]
[1768937139581,8.58051147,2994.9,2994.2,0.551]
[1768937140014,8.58051147,2994.7,2994.1,1.24596046]
[1768937140513,8.58051147,2994.9,2994.1,9.81257338]
[1768937143885,5.27365002,2994.6,2994.1,1.24596046]
[1768937144092,8.47051182,2994.5,2994.0,8.62806313]
[1768937144989,8.47051182,2994.5,2994.0,0.002]
[1768937145208,14.08608191,2994.4,2994.0,0.002]
[1768937145421,8.81243189,2994.3,2994.0,0.002]
[1768937146489,8.81243189,2994.3,2993.8,0.002]
[1768937146490,8.81243189,2994.1,2993.8,0.002]
[1768937148091,8.81243189,2994.1,2993.4,0.551]
[1768937148628,8.81243189,2994.1,2993.4,9.04454148]
[1768937148816,8.81243189,2994.1,2994.0,0.002]
[1768937149011,10.3091644,2994.1,2993.4,9.04454148]
[1768937151028,10.3091644,2994.1,2993.4,8.49354148]
[1768937151188,8.81243189,2993.4,2992.8,8.49554148]
[1768937152837,8.81243189,2993.4,2992.8,0.002]
[1768937153138,8.81243189,2993.4,2992.8,8.49554148]
[1768937153930,0.551,2993.6,2992.8,8.49554148]
[1768937154090,9.36343189,2993.6,2992.8,9.34549563]
[1768937155013,8.81243189,2993.4,2992.8,9.34549563]
[1768937155322,8.81243189,2993.2,2992.8,0.002]
[1768937157112,8.81243189,2993.6,2992.8,8.49554148]
[1768937157315,9.36343189,2993.6,2992.8,8.49554148]
[1768937157508,0.551,2993.7,2992.8,8.49554148]
[1768937157713,9.36343189,2993.7,2992.8,8.49554148]
[1768937157919,9.36343189,2993.7,2992.8,10.20700338]
[1768937158133,8.81243189,2993.6,2993.0,8.49354148]
[1768937160436,8.81243189,2993.6,2993.0,8.49554148]
[1768937160652,5.27365002,2993.7,2993.0,8.49554148]
[1768937160809,9.36343189,2993.8,2993.0,8.49554148]
[1768937161150,10.27614008,2993.7,2993.0,8.49554148]
[1768937161353,8.81243189,2993.3,2992.8,0.002]
[1768937163848,8.81243189,2993.1,2992.8,0.002]
[1768937164732,4.80411325,2993.7,2992.8,0.002]
[1768937164733,8.81243189,2993.3,2992.8,0.002]
[1768937166239,5.27991688,2993.4,2992.8,0.002]
[1768937166240,5.27991688,2993.4,2992.8,8.49554148]
[1768937166542,1.46370819,2993.7,2992.8,8.49554148]
[1768937166543,10.27614008,2993.7,2992.8,9.73475218]
[1768937166745,10.82714008,2993.7,2992.8,9.73475218]
[1768937167238,5.27991688,2993.6,2992.8,9.73475218]
[1768937167442,8.81243189,2993.5,2992.8,9.73475218]
[1768937167638,8.81243189,2993.3,2992.8,0.002]
[1768937168020,8.81243189,2993.3,2992.8,8.49554148]
[1768937168542,8.81243189,2993.5,2992.8,8.49554148]
[1768937169548,9.36343189,2993.7,2992.8,8.49554148]
[1768937169751,9.36343189,2993.7,2993.0,8.49354148]
[1768937170246,8.81243189,2993.7,2993.0,8.49354148]
[1768937174364,8.81243189,2993.1,2992.7,0.002]
[1768937174535,14.09234877,2993.0,2992.6,0.002]
[1768937174863,8.81243189,2993.1,2992.6,8.49554148]
[1768937175567,8.56823303,2992.9,2992.6,0.002]
[1768937177273,8.56823303,2992.7,2992.2,7.99765878]
[1768937177480,8.56823303,2992.7,2992.1,0.551]
[1768937177974,8.56823303,2992.4,2991.8,7.99965878]
[1768937178157,8.56823303,2992.4,2991.9,8.54865878]
[1768937178353,5.27991688,2992.5,2991.9,8.54865878]
[1768937178554,5.27991688,2992.5,2992.0,1.18931274]
[1768937179286,5.27991688,2992.5,2992.0,9.18697152]
[1768937179689,13.84814991,2992.5,2992.0,9.18697152]
[1768937181260,5.27991688,2992.5,2992.1,7.99765878]
[1768937182277,5.27991688,2992.5,2992.0,1.18931274]
[1768937182278,13.84814991,2992.5,2992.0,4.07230129]
[1768937182477,13.84814991,2992.5,2992.2,0.002]
[1768937182678,13.84814991,2992.5,2992.0,2.88298855]
[1768937182880,13.84814991,2992.5,2992.0,2.88498855]
[1768937183250,13.84814991,2992.5,2992.0,6.22723033]
[1768937183482,13.84814991,2992.5,2992.0,0.002]
[1768937183851,13.84814991,2992.5,2992.0,2.91503744]
[1768937184377,13.84814991,2992.5,2992.0,3.59617204]